[Event "44th Chess Olympiad Open 2022"]
[Site "Chennai"]
[Date "2022.08.08"]
[Round "10.63"]
[White "Razanadrakotoarisoa, Toavina"]
[Black "Anhwere, Bernard"]
[Result "1-0"]
[WhiteElo "2039"]
[BlackElo "1890"]
[Annotator "NA RC"]
[PlyCount "57"]
[EventDate "2022.??.??"]
[TimeControl "60"]

1. e4 {[%emt 0:00:04]} c5 {[%emt 0:00:02]} 2. Nf3 {[%emt 0:00:06]} d6 {[%emt 0:
00:00]} 3. d4 {[%emt 0:00:10]} cxd4 {[%emt 0:00:06]} 4. Nxd4 {[%emt 0:00:04]}
Nf6 {[%emt 0:00:07]} 5. Nc3 {[%emt 0:00:04]} a6 {[%emt 0:00:04]} 6. a4 {
[%emt 0:00:19]} e5 {[%emt 0:00:09]} 7. Nf3 {[%emt 0:00:24]} Bg4 {[%emt 0:01:45]
} 8. Bg5 {[%emt 0:01:51]} Be7 {[%emt 0:01:17]} 9. Bxf6 {[%emt 0:01:01]} Bxf6 {
[%emt 0:00:05]} 10. Nd5 {[%emt 0:00:08]} Nc6 {[%emt 0:02:19]} 11. c3 {[%emt 0:
00:00]} O-O {[%emt 0:00:15]} 12. Be2 {[%emt 0:01:54]} Rc8 {[%emt 0:00:53]} 13.
Nd2 {[%emt 0:03:24]} Be6 {[%emt 0:04:49]} 14. Nc4 {[%emt 0:01:12]} Bxd5 {
[%emt 0:07:21]} 15. Qxd5 {[%emt 0:00:32]} Be7 {[%emt 0:01:16]} 16. O-O {
[%emt 0:02:05]} Kh8 {[%emt 0:01:14]} 17. Rad1 {[%emt 0:01:16]} f5 {[%emt 0:00:
00]} 18. exf5 {[%emt 0:00:54]} Rf6 {[%emt 0:02:20]} 19. b4 {[%emt 0:00:45]} Qc7
{[%emt 0:04:32]} 20. b5 {[%emt 0:01:48]} axb5 {[%emt 0:03:01]} 21. axb5 {
[%emt 0:00:07]} Na5 {[%emt 0:01:28]} 22. b6 {[%emt 0:00:25]} Qc5 {[%emt 0:00:
00]} 23. Nxa5 {[%emt 0:00:18]} Qxb6 {[%emt 0:00:33]} 24. Rb1 {[%emt 0:03:04]}
Qc5 {[%emt 0:10:09]} 25. Qxc5 {[%emt 0:01:06]} Rxc5 {[%emt 0:00:10]} 26. Rxb7 {
[%emt 0:01:27]} Bf8 {[%emt 0:00:36]} 27. Nc4 {[%emt 0:00:37]} Rxf5 {[%emt 0:00:
00]} 28. Rd1 {[%emt 0:01:55]} d5 {[%emt 0:02:34]} 29. Ne3 {[%emt 0:00:08]} 1-0

[Event "44th Chess Olympiad Open 2022"]
[Site "Chennai"]
[Date "2022.08.08"]
[Round "10.63"]
[White "Adu-Poku, Kwabena"]
[Black "Andrianiaina, Heritiana"]
[Result "0-1"]
[WhiteElo "1974"]
[BlackElo "2095"]
[Annotator "NA RC"]
[PlyCount "124"]
[EventDate "2022.??.??"]
[TimeControl "60"]

1. d4 {[%emt 0:00:12]} Nf6 {[%emt 0:00:04]} 2. c4 {[%emt 0:00:10]} e6 {[%emt 0:
00:00]} 3. Nf3 {[%emt 0:00:37]} Bb4+ {[%emt 0:02:42]} 4. Bd2 {[%emt 0:01:07]}
Qe7 {[%emt 0:01:00]} 5. a3 {[%emt 0:03:00]} Bxd2+ {[%emt 0:00:07]} 6. Nbxd2 {
[%emt 0:00:05]} d6 {[%emt 0:02:28]} 7. e4 {[%emt 0:04:13]} e5 {[%emt 0:00:21]}
8. d5 {[%emt 0:03:56]} O-O {[%emt 0:01:44]} 9. Bd3 {[%emt 0:01:23]} a5 {
[%emt 0:01:26]} 10. Qc2 {[%emt 0:00:19]} a4 {[%emt 0:01:10]} 11. O-O {[%emt 0:
00:00]} Bg4 {[%emt 0:02:00]} 12. Rfc1 {[%emt 0:04:02]} Nbd7 {[%emt 0:00:16]}
13. h3 {[%emt 0:03:18]} Bxf3 {[%emt 0:00:19]} 14. Nxf3 {[%emt 0:00:06]} Nc5 {
[%emt 0:00:05]} 15. Nd2 {[%emt 0:00:18]} Nh5 {[%emt 0:02:40]} 16. b4 {[%emt 0:
00:00]} axb3 {[%emt 0:00:36]} 17. Nxb3 {[%emt 0:00:07]} Nxb3 {[%emt 0:01:33]}
18. Qxb3 {[%emt 0:00:07]} b6 {[%emt 0:00:07]} 19. g3 {[%emt 0:02:00]} Ra5 {
[%emt 0:00:44]} 20. a4 {[%emt 0:02:25]} Nf6 {[%emt 0:00:39]} 21. Bc2 {[%emt 0:
00:00]} Nd7 {[%emt 0:00:15]} 22. Rcb1 {[%emt 0:02:01]} Nc5 {[%emt 0:00:26]} 23.
Qc3 {[%emt 0:07:45]} Rfa8 {[%emt 0:03:11]} 24. Rb5 {[%emt 0:03:02]} R5a6 {
[%emt 0:03:31]} 25. Rb4 {[%emt 0:08:36]} g6 {[%emt 0:08:16]} 26. Kg2 {[%emt 0:
00:00]} Kg7 {[%emt 0:00:14]} 27. Qd2 {[%emt 0:07:44]} Qd7 {[%emt 0:05:40]} 28.
Qd1 {[%emt 0:02:16]} Kh8 {[%emt 0:02:31]} 29. Qg4 {[%emt 0:04:21]} Qxg4 {
[%emt 0:03:04]} 30. hxg4 {[%emt 0:00:08]} Kg7 {[%emt 0:00:02]} 31. f4 {[%emt 0:
00:00]} exf4 {[%emt 0:24:06]} 32. gxf4 {[%emt 0:00:29]} g5 {[%emt 0:00:02]} 33.
f5 {[%emt 0:17:49]} Nd7 {[%emt 0:00:34]} 34. Bd3 {[%emt 0:01:48]} Nf6 {[%emt 0:
00:00]} 35. Kf3 {[%emt 0:02:56]} h5 {[%emt 0:02:26]} 36. gxh5 {[%emt 0:01:19]}
Nxh5 {[%emt 0:00:04]} 37. c5 {[%emt 0:03:18]} dxc5 {[%emt 0:08:15]} 38. Bxa6 {
[%emt 0:00:29]} cxb4 {[%emt 0:00:03]} 39. Bb5 {[%emt 0:00:26]} Kf6 {[%emt 0:00:
00]} 40. Rb1 {[%emt 0:01:06]} Ke5 {[%emt 0:01:33]} 41. Rxb4 {[%emt 0:30:20]}
Nf6 {[%emt 0:30:43]} 42. Bd3 {[%emt 0:05:12]} Nd7 {[%emt 0:02:25]} 43. Rc4 {
[%emt 0:00:00]} Nc5 {[%emt 0:00:00]} 44. Bc2 {[%emt 0:00:00]} f6 {[%emt 0:00:
00]} 45. Kg3 {[%emt 0:00:00]} Kd6 {[%emt 0:00:00]} 46. Kf3 {[%emt 0:00:00]} Rh8
{[%emt 0:00:00]} 47. Kg3 {[%emt 0:00:00]} Rh1 {[%emt 0:00:00]} 48. Kg4 {
[%emt 0:00:00]} Ra1 {[%emt 0:00:00]} 49. Kh5 {[%emt 0:00:00]} Ra3 {[%emt 0:00:
00]} 50. Kg4 {[%emt 0:00:00]} Ke5 {[%emt 0:00:00]} 51. Kh5 {[%emt 0:00:00]} Ra1
{[%emt 0:00:00]} 52. Kg4 {[%emt 0:00:00]} Rc1 {[%emt 0:00:00]} 53. a5 {[%emt 0:
00:00]} Kd6 {[%emt 0:00:00]} 54. axb6 {[%emt 0:00:00]} cxb6 {[%emt 0:00:00]}
55. Kh5 {[%emt 0:05:28]} b5 {[%emt 0:00:00]} 56. Rc3 {[%emt 0:01:25]} b4 {
[%emt 0:00:00]} 57. Rc4 {[%emt 0:00:08]} b3 {[%emt 0:00:00]} 58. Bxb3 {[%emt 0:
00:00]} Nxb3 {[%emt 0:00:00]} 59. Rb4 {[%emt 0:00:21]} Nc5 {[%emt 0:00:00]} 60.
Rb6+ {[%emt 0:00:42]} Ke5 {[%emt 0:00:00]} 61. Kg6 {[%emt 0:01:17]} Nxe4 {
[%emt 0:00:00]} 62. d6 {[%emt 0:00:28]} Nxd6 {[%emt 0:00:00]} 0-1

[Event "44th Chess Olympiad Open 2022"]
[Site "Chennai"]
[Date "2022.08.08"]
[Round "10.63"]
[White "Adu Jnr, Lionel"]
[Black "Rakotomaharavo, Dylan"]
[Result "0-1"]
[WhiteElo "1824"]
[BlackElo "1948"]
[Annotator "NA RC"]
[PlyCount "96"]
[EventDate "2022.??.??"]
[TimeControl "60"]

1. d4 {[%emt 0:00:04]} Nf6 {[%emt 0:00:06]} 2. Nf3 {[%emt 0:00:14]} d5 {
[%emt 0:00:13]} 3. g3 {[%emt 0:00:05]} e6 {[%emt 0:00:21]} 4. Bg2 {[%emt 0:00:
00]} Be7 {[%emt 0:00:28]} 5. O-O {[%emt 0:00:10]} O-O {[%emt 0:00:03]} 6. c4 {
[%emt 0:00:05]} c6 {[%emt 0:00:51]} 7. Nc3 {[%emt 0:00:14]} Nbd7 {[%emt 0:00:
00]} 8. cxd5 {[%emt 0:04:01]} exd5 {[%emt 0:00:06]} 9. a3 {[%emt 0:03:31]} Bd6
{[%emt 0:00:24]} 10. Bg5 {[%emt 0:01:33]} h6 {[%emt 0:00:08]} 11. Bxf6 {
[%emt 0:00:41]} Nxf6 {[%emt 0:00:06]} 12. e3 {[%emt 0:00:25]} Bf5 {[%emt 0:00:
00]} 13. b4 {[%emt 0:02:00]} Qe7 {[%emt 0:00:19]} 14. Qb3 {[%emt 0:00:53]} b5 {
[%emt 0:01:19]} 15. Rfc1 {[%emt 0:03:46]} a5 {[%emt 0:01:15]} 16. Na2 {[%emt 0:
00:00]} Bd7 {[%emt 0:00:16]} 17. Ne1 {[%emt 0:00:35]} Ne4 {[%emt 0:01:31]} 18.
Nd3 {[%emt 0:00:59]} Nd2 {[%emt 0:00:21]} 19. Qc3 {[%emt 0:01:24]} Nc4 {
[%emt 0:00:25]} 20. Nc5 {[%emt 0:00:55]} Bf5 {[%emt 0:00:32]} 21. Re1 {[%emt 0:
00:00]} axb4 {[%emt 0:02:30]} 22. Nxb4 {[%emt 0:10:51]} Bxc5 {[%emt 0:00:21]}
23. dxc5 {[%emt 0:00:57]} Qxc5 {[%emt 0:00:11]} 24. e4 {[%emt 0:22:18]} d4 {
[%emt 0:00:58]} 25. Qf3 {[%emt 0:02:11]} Bd7 {[%emt 0:00:13]} 26. Rec1 {
[%emt 0:00:10]} Rfc8 {[%emt 0:05:55]} 27. Qd3 {[%emt 0:07:07]} Be6 {[%emt 0:00:
00]} 28. Kh1 {[%emt 0:07:20]} Qf8 {[%emt 0:00:58]} 29. e5 {[%emt 0:02:30]} c5 {
[%emt 0:00:30]} 30. Nd5 {[%emt 0:01:39]} Rab8 {[%emt 0:04:16]} 31. Qe2 {
[%emt 0:07:48]} Qd8 {[%emt 0:00:49]} 32. Nf4 {[%emt 0:00:32]} Bf5 {[%emt 0:00:
00]} 33. Nd3 {[%emt 0:03:00]} Bxd3 {[%emt 0:00:12]} 34. Qxd3 {[%emt 0:01:00]}
Nxe5 {[%emt 0:00:17]} 35. Qf5 {[%emt 0:00:01]} Qf6 {[%emt 0:00:34]} 36. Bh3 {
[%emt 0:01:30]} Qxf5 {[%emt 0:00:12]} 37. Bxf5 {[%emt 0:00:02]} Rc7 {[%emt 0:
00:00]} 38. f4 {[%emt 0:01:35]} Nc4 {[%emt 0:00:04]} 39. a4 {[%emt 0:02:34]}
Ne3 {[%emt 0:00:17]} 40. Be4 {[%emt 0:00:22]} f5 {[%emt 0:01:30]} 41. Bf3 {
[%emt 0:30:17]} bxa4 {[%emt 0:31:00]} 42. Rxa4 {[%emt 0:00:08]} d3 {[%emt 0:00:
00]} 43. Re1 {[%emt 0:02:15]} Re7 {[%emt 0:00:00]} 44. Ra3 {[%emt 0:02:34]} c4
{[%emt 0:00:00]} 45. Rc3 {[%emt 0:00:26]} Kf8 {[%emt 0:00:00]} 46. Kg1 {
[%emt 0:02:28]} Rb2 {[%emt 0:00:58]} 47. Bd1 {[%emt 0:00:47]} Rb1 {[%emt 0:00:
00]} 48. Kf2 {[%emt 0:00:31]} Nxd1+ {[%emt 0:00:11]} 0-1

[Event "44th Chess Olympiad Open 2022"]
[Site "Chennai"]
[Date "2022.08.08"]
[Round "10.64"]
[White "Alfaro, William"]
[Black "Ebosse Kingue Victor Patrick"]
[Result "1-0"]
[WhiteElo "2155"]
[BlackElo "2054"]
[Annotator "NA RC"]
[PlyCount "65"]
[EventDate "2022.??.??"]
[TimeControl "60"]

1. e4 {[%emt 0:00:52]} c5 {[%emt 0:00:10]} 2. d4 {[%emt 0:00:10]} cxd4 {
[%emt 0:00:06]} 3. c3 {[%emt 0:00:04]} dxc3 {[%emt 0:00:25]} 4. Nxc3 {[%emt 0:
00:00]} Nc6 {[%emt 0:00:24]} 5. Nf3 {[%emt 0:00:06]} Nf6 {[%emt 0:00:18]} 6.
Bc4 {[%emt 0:00:24]} e6 {[%emt 0:00:06]} 7. e5 {[%emt 0:01:02]} Ng4 {[%emt 0:
00:00]} 8. Qe2 {[%emt 0:00:05]} d5 {[%emt 0:01:47]} 9. Bb5 {[%emt 0:06:39]} Bd7
{[%emt 0:00:23]} 10. h3 {[%emt 0:00:48]} Nh6 {[%emt 0:00:07]} 11. Bxh6 {
[%emt 0:00:12]} gxh6 {[%emt 0:00:10]} 12. O-O {[%emt 0:00:02]} Bg7 {[%emt 0:00:
00]} 13. Rad1 {[%emt 0:00:30]} Qc7 {[%emt 0:02:10]} 14. Rfe1 {[%emt 0:02:03]}
O-O {[%emt 0:02:30]} 15. Bd3 {[%emt 0:00:03]} a6 {[%emt 0:00:08]} 16. Bb1 {
[%emt 0:00:02]} Ne7 {[%emt 0:01:28]} 17. Rc1 {[%emt 0:18:25]} Rfc8 {[%emt 0:00:
00]} 18. Nxd5 {[%emt 0:08:08]} Qxc1 {[%emt 0:00:18]} 19. Nxe7+ {[%emt 0:00:47]}
Kf8 {[%emt 0:00:10]} 20. Nxc8 {[%emt 0:00:05]} Qxc8 {[%emt 0:05:00]} 21. Bxh7 {
[%emt 0:00:41]} Qc5 {[%emt 0:02:17]} 22. Qd2 {[%emt 0:03:23]} Bc6 {[%emt 0:00:
00]} 23. Be4 {[%emt 0:01:16]} Bxe4 {[%emt 0:02:14]} 24. Rxe4 {[%emt 0:00:06]}
Rc8 {[%emt 0:01:45]} 25. Kh2 {[%emt 0:03:40]} Ke8 {[%emt 0:02:34]} 26. Qf4 {
[%emt 0:03:59]} Qxf2 {[%emt 0:06:30]} 27. Qg4 {[%emt 0:08:22]} Kf8 {[%emt 0:00:
00]} 28. Rf4 {[%emt 0:06:27]} Qb6 {[%emt 0:02:32]} 29. Qg6 {[%emt 0:03:40]} Rc7
{[%emt 0:05:32]} 30. Qd3 {[%emt 0:04:21]} Rc5 {[%emt 0:06:12]} 31. Qd7 {
[%emt 0:09:36]} f5 {[%emt 0:09:54]} 32. exf6 {[%emt 0:01:47]} Bh8 {[%emt 0:00:
00]} 33. Qe7+ {[%emt 0:01:33]} 1-0

[Event "44th Chess Olympiad Open 2022"]
[Site "Chennai"]
[Date "2022.08.08"]
[Round "10.64"]
[White "Salazar Cabezas, Alberto Javier"]
[Black "Zebaze Dongmo Loic Dylane"]
[Result "1-0"]
[WhiteElo "2155"]
[BlackElo "1837"]
[Annotator "NA RC"]
[PlyCount "99"]
[EventDate "2022.??.??"]
[TimeControl "60"]

1. Nf3 {[%emt 0:00:03]} Nf6 {[%emt 0:00:47]} 2. c4 {[%emt 0:00:05]} e6 {
[%emt 0:00:05]} 3. g3 {[%emt 0:00:04]} d5 {[%emt 0:00:04]} 4. Bg2 {[%emt 0:00:
00]} Be7 {[%emt 0:00:18]} 5. O-O {[%emt 0:00:05]} O-O {[%emt 0:00:14]} 6. b3 {
[%emt 0:00:02]} c5 {[%emt 0:00:20]} 7. Bb2 {[%emt 0:01:18]} Nc6 {[%emt 0:00:39]
} 8. e3 {[%emt 0:01:40]} Qc7 {[%emt 0:02:07]} 9. Nc3 {[%emt 0:02:00]} a6 {
[%emt 0:00:44]} 10. cxd5 {[%emt 0:00:51]} exd5 {[%emt 0:00:26]} 11. d4 {
[%emt 0:00:07]} cxd4 {[%emt 0:02:44]} 12. Nxd4 {[%emt 0:01:29]} Rd8 {[%emt 0:
00:00]} 13. Rc1 {[%emt 0:01:50]} Qb6 {[%emt 0:02:36]} 14. Na4 {[%emt 0:02:30]}
Qa5 {[%emt 0:01:10]} 15. Rxc6 {[%emt 0:19:31]} bxc6 {[%emt 0:00:54]} 16. Nxc6 {
[%emt 0:00:02]} Qc7 {[%emt 0:01:25]} 17. Nxd8 {[%emt 0:00:15]} Qxd8 {[%emt 0:
00:00]} 18. Bxf6 {[%emt 0:00:19]} Bxf6 {[%emt 0:00:03]} 19. Qxd5 {[%emt 0:00:
00]} Qxd5 {[%emt 0:00:49]} 20. Bxd5 {[%emt 0:00:03]} Ra7 {[%emt 0:01:16]} 21.
Rc1 {[%emt 0:04:10]} Bh3 {[%emt 0:00:46]} 22. Nb6 {[%emt 0:12:15]} g6 {[%emt 0:
00:00]} 23. f3 {[%emt 0:00:53]} Bd8 {[%emt 0:05:12]} 24. Nc4 {[%emt 0:01:45]}
Rd7 {[%emt 0:02:12]} 25. e4 {[%emt 0:00:34]} Bf6 {[%emt 0:00:57]} 26. Kf2 {
[%emt 0:01:07]} Kg7 {[%emt 0:01:06]} 27. Rd1 {[%emt 0:01:50]} a5 {[%emt 0:00:
00]} 28. Nxa5 {[%emt 0:02:49]} Ra7 {[%emt 0:00:41]} 29. b4 {[%emt 0:00:06]} Bd8
{[%emt 0:00:41]} 30. Ke2 {[%emt 0:01:45]} Bxa5 {[%emt 0:01:45]} 31. bxa5 {
[%emt 0:00:06]} Rxa5 {[%emt 0:00:16]} 32. Rc1 {[%emt 0:00:32]} f5 {[%emt 0:00:
00]} 33. Rc7+ {[%emt 0:00:33]} Kf6 {[%emt 0:01:22]} 34. Rxh7 {[%emt 0:01:05]}
fxe4 {[%emt 0:00:11]} 35. fxe4 {[%emt 0:00:08]} Bg4+ {[%emt 0:00:07]} 36. Ke3 {
[%emt 0:00:10]} Be6 {[%emt 0:00:55]} 37. Bxe6 {[%emt 0:01:12]} Kxe6 {[%emt 0:
00:00]} 38. Kf4 {[%emt 0:00:43]} Rxa2 {[%emt 0:01:54]} 39. Kg5 {[%emt 0:02:47]}
Ke5 {[%emt 0:00:57]} 40. Kxg6 {[%emt 0:02:08]} Kxe4 {[%emt 0:00:20]} 41. Rf7 {
[%emt 0:31:51]} Rxh2 {[%emt 0:30:18]} 42. g4 {[%emt 0:00:06]} Ke5 {[%emt 0:00:
00]} 43. g5 {[%emt 0:00:32]} Ke6 {[%emt 0:00:51]} 44. Rf1 {[%emt 0:00:13]} Ke7
{[%emt 0:00:50]} 45. Kg7 {[%emt 0:00:09]} Re2 {[%emt 0:01:59]} 46. g6 {[%emt 0:
00:00]} Re3 {[%emt 0:01:31]} 47. Kg8 {[%emt 0:00:16]} Rg3 {[%emt 0:01:54]} 48.
g7 {[%emt 0:00:06]} Rg2 {[%emt 0:02:10]} 49. Re1+ {[%emt 0:00:21]} Kf6 {
[%emt 0:00:16]} 50. Kf8 {[%emt 0:00:09]} 1-0

[Event "44th Chess Olympiad Open 2022"]
[Site "Chennai"]
[Date "2022.08.08"]
[Round "10.64"]
[White "Amba Oyon Marius Claude"]
[Black "Rocha, Maximiliano"]
[Result "0-1"]
[WhiteElo "1938"]
[BlackElo "2117"]
[Annotator "NA RC"]
[PlyCount "72"]
[EventDate "2022.??.??"]
[TimeControl "60"]

1. e4 {[%emt 0:00:14]} e5 {[%emt 0:00:12]} 2. Nf3 {[%emt 0:00:35]} Nc6 {
[%emt 0:00:12]} 3. Bb5 {[%emt 0:00:55]} a6 {[%emt 0:01:42]} 4. Ba4 {[%emt 0:00:
00]} Nf6 {[%emt 0:00:30]} 5. O-O {[%emt 0:00:21]} b5 {[%emt 0:00:24]} 6. Bb3 {
[%emt 0:00:20]} Bc5 {[%emt 0:02:13]} 7. c3 {[%emt 0:00:49]} d6 {[%emt 0:00:31]}
8. h3 {[%emt 0:01:14]} Bb6 {[%emt 0:00:18]} 9. d3 {[%emt 0:02:21]} Ne7 {
[%emt 0:05:28]} 10. Ng5 {[%emt 0:05:27]} O-O {[%emt 0:01:12]} 11. Be3 {[%emt 0:
00:00]} c5 {[%emt 0:00:55]} 12. Nd2 {[%emt 0:03:22]} h6 {[%emt 0:00:43]} 13.
Ngf3 {[%emt 0:00:44]} Ng6 {[%emt 0:00:38]} 14. d4 {[%emt 0:03:10]} Qc7 {
[%emt 0:01:02]} 15. dxe5 {[%emt 0:03:08]} dxe5 {[%emt 0:00:10]} 16. Bd5 {
[%emt 0:02:06]} Nxd5 {[%emt 0:08:18]} 17. exd5 {[%emt 0:00:15]} f5 {[%emt 0:00:
00]} 18. d6 {[%emt 0:13:06]} Qxd6 {[%emt 0:02:55]} 19. Nb3 {[%emt 0:00:17]} Qc6
{[%emt 0:00:14]} 20. c4 {[%emt 0:10:02]} bxc4 {[%emt 0:01:11]} 21. Nbd2 {
[%emt 0:03:01]} f4 {[%emt 0:00:10]} 22. Nxc4 {[%emt 0:00:14]} fxe3 {[%emt 0:00:
00]} 23. Nxb6 {[%emt 0:01:52]} Qxb6 {[%emt 0:00:18]} 24. Qd5+ {[%emt 0:02:06]}
Be6 {[%emt 0:00:30]} 25. Qe4 {[%emt 0:00:14]} Bf5 {[%emt 0:00:24]} 26. Qxe3 {
[%emt 0:00:13]} Rae8 {[%emt 0:01:25]} 27. b3 {[%emt 0:00:55]} Qf6 {[%emt 0:00:
00]} 28. Rac1 {[%emt 0:00:29]} Bxh3 {[%emt 0:02:22]} 29. Ne1 {[%emt 0:04:09]}
Bd7 {[%emt 0:01:34]} 30. Rxc5 {[%emt 0:00:15]} Bb5 {[%emt 0:00:05]} 31. Rxb5 {
[%emt 0:06:52]} axb5 {[%emt 0:00:09]} 32. Nd3 {[%emt 0:00:31]} Nf4 {[%emt 0:00:
00]} 33. Nc5 {[%emt 0:01:22]} e4 {[%emt 0:00:31]} 34. b4 {[%emt 0:01:44]} Qg5 {
[%emt 0:00:11]} 35. Qb3+ {[%emt 0:01:37]} Kh8 {[%emt 0:00:30]} 36. g3 {[%emt 0:
00:00]} e3 {[%emt 0:02:28]} 0-1

[Event "44th Chess Olympiad Open 2022"]
[Site "Chennai"]
[Date "2022.08.08"]
[Round "10.65"]
[White "Willem Blijstra"]
[Black "Pereira, Sergio Murilo de Ar"]
[Result "0-1"]
[WhiteElo "2198"]
[BlackElo "2093"]
[Annotator "NA RC"]
[PlyCount "54"]
[EventDate "2022.??.??"]
[TimeControl "60"]

1. d4 {[%emt 0:00:04]} d5 {[%emt 0:00:18]} 2. Nf3 {[%emt 0:00:17]} Nf6 {
[%emt 0:00:13]} 3. c4 {[%emt 0:00:13]} dxc4 {[%emt 0:00:15]} 4. Nc3 {[%emt 0:
00:00]} a6 {[%emt 0:00:55]} 5. a4 {[%emt 0:00:16]} Nc6 {[%emt 0:00:31]} 6. e3 {
[%emt 0:09:35]} Na5 {[%emt 0:03:15]} 7. Ne5 {[%emt 0:01:07]} Be6 {[%emt 0:00:
00]} 8. Be2 {[%emt 0:00:41]} g6 {[%emt 0:03:28]} 9. O-O {[%emt 0:05:11]} Bg7 {
[%emt 0:06:19]} 10. b4 {[%emt 0:10:55]} cxb3 {[%emt 0:03:57]} 11. Ba3 {[%emt 0:
00:00]} Nd7 {[%emt 0:16:40]} 12. Nd3 {[%emt 0:09:16]} Bc4 {[%emt 0:15:12]} 13.
f4 {[%emt 0:06:56]} b6 {[%emt 0:03:34]} 14. Rc1 {[%emt 0:03:08]} O-O {[%emt 0:
00:00]} 15. Bf3 {[%emt 0:03:59]} Rc8 {[%emt 0:00:55]} 16. Rf2 {[%emt 0:02:37]}
c5 {[%emt 0:01:19]} 17. d5 {[%emt 0:06:26]} b5 {[%emt 0:01:18]} 18. axb5 {
[%emt 0:00:27]} axb5 {[%emt 0:00:30]} 19. Bb2 {[%emt 0:01:54]} Bxd3 {[%emt 0:
00:00]} 20. Qxd3 {[%emt 0:00:16]} c4 {[%emt 0:00:14]} 21. Qb1 {[%emt 0:04:35]}
b4 {[%emt 0:00:45]} 22. Qa1 {[%emt 0:01:03]} bxc3 {[%emt 0:05:34]} 23. Bxc3 {
[%emt 0:00:11]} Bxc3 {[%emt 0:00:03]} 24. Rxc3 {[%emt 0:00:14]} Qb6 {[%emt 0:
00:00]} 25. h4 {[%emt 0:00:22]} Nc5 {[%emt 0:00:10]} 26. h5 {[%emt 0:00:34]}
Nd3 {[%emt 0:00:50]} 27. h6 {[%emt 0:00:41]} b2 {[%emt 0:00:21]} 0-1

[Event "44th Chess Olympiad Open 2022"]
[Site "Chennai"]
[Date "2022.08.08"]
[Round "10.65"]
[White "Rurik Capella"]
[Black "Espirito Santo, Waldyr"]
[Result "1-0"]
[WhiteElo "1952"]
[BlackElo "1922"]
[Annotator "NA RC"]
[PlyCount "121"]
[EventDate "2022.??.??"]
[TimeControl "60"]

1. d4 {[%emt 0:00:07]} Nf6 {[%emt 0:01:21]} 2. Bg5 {[%emt 0:00:33]} e6 {
[%emt 0:00:30]} 3. e4 {[%emt 0:00:36]} Be7 {[%emt 0:00:30]} 4. e5 {[%emt 0:00:
00]} Nd5 {[%emt 0:01:33]} 5. Bd2 {[%emt 0:02:02]} O-O {[%emt 0:07:48]} 6. c4 {
[%emt 0:03:01]} Nb6 {[%emt 0:00:57]} 7. Bd3 {[%emt 0:04:14]} f5 {[%emt 0:06:42]
} 8. Nc3 {[%emt 0:01:56]} d6 {[%emt 0:03:53]} 9. exd6 {[%emt 0:05:41]} cxd6 {
[%emt 0:00:25]} 10. f4 {[%emt 0:05:03]} Nc6 {[%emt 0:04:02]} 11. Nf3 {[%emt 0:
00:00]} e5 {[%emt 0:03:06]} 12. d5 {[%emt 0:16:03]} Nb4 {[%emt 0:08:11]} 13.
Be2 {[%emt 0:02:39]} e4 {[%emt 0:06:19]} 14. Nd4 {[%emt 0:07:08]} Bf6 {[%emt 0:
00:00]} 15. Be3 {[%emt 0:05:13]} Nd3+ {[%emt 0:08:47]} 16. Bxd3 {[%emt 0:01:11]
} exd3 {[%emt 0:00:12]} 17. Qxd3 {[%emt 0:00:05]} Re8 {[%emt 0:05:04]} 18. O-O
{[%emt 0:00:40]} Nxc4 {[%emt 0:01:00]} 19. Qxc4 {[%emt 0:04:40]} Rxe3 {[%emt 0:
00:00]} 20. Nc2 {[%emt 0:12:29]} Re8 {[%emt 0:01:46]} 21. Kh1 {[%emt 0:02:20]}
Qb6 {[%emt 0:08:09]} 22. Rab1 {[%emt 0:04:25]} Bd7 {[%emt 0:00:41]} 23. h3 {
[%emt 0:06:08]} Re7 {[%emt 0:01:42]} 24. Rfd1 {[%emt 0:04:21]} Rc8 {[%emt 0:00:
00]} 25. Qd3 {[%emt 0:01:06]} Rce8 {[%emt 0:04:15]} 26. a3 {[%emt 0:02:04]} a6
{[%emt 0:03:56]} 27. Nd4 {[%emt 0:00:21]} Re3 {[%emt 0:00:41]} 28. Qd2 {
[%emt 0:00:29]} Bxd4 {[%emt 0:04:08]} 29. Qxd4 {[%emt 0:00:01]} Re1+ {[%emt 0:
00:00]} 30. Kh2 {[%emt 0:00:01]} Qxd4 {[%emt 0:01:38]} 31. Rxd4 {[%emt 0:00:11]
} R1e3 {[%emt 0:01:13]} 32. Rc4 {[%emt 0:02:07]} R8e7 {[%emt 0:02:19]} 33. Kg1
{[%emt 0:01:04]} Kf7 {[%emt 0:01:19]} 34. Kf2 {[%emt 0:00:01]} Be8 {[%emt 0:00:
00]} 35. Rc8 {[%emt 0:00:53]} Rd3 {[%emt 0:01:17]} 36. Rd1 {[%emt 0:00:04]}
Rxd1 {[%emt 0:00:42]} 37. Nxd1 {[%emt 0:00:01]} Re4 {[%emt 0:01:28]} 38. g3 {
[%emt 0:00:20]} Rd4 {[%emt 0:00:33]} 39. Ne3 {[%emt 0:02:50]} Rd2+ {[%emt 0:00:
00]} 40. Kf3 {[%emt 0:00:13]} Rxb2 {[%emt 0:00:41]} 41. Nxf5 {[%emt 0:31:52]}
Ba4 {[%emt 0:02:34]} 42. Nxd6+ {[%emt 0:00:00]} Ke7 {[%emt 0:00:39]} 43. Nf5+ {
[%emt 0:00:00]} Kd7 {[%emt 0:01:57]} 44. Rg8 {[%emt 0:00:00]} g6 {[%emt 0:00:
00]} 45. Rg7+ {[%emt 0:00:00]} Kd8 {[%emt 0:00:20]} 46. Nd4 {[%emt 0:00:00]}
Bd7 {[%emt 0:01:26]} 47. Rxh7 {[%emt 0:00:00]} b5 {[%emt 0:01:27]} 48. g4 {
[%emt 0:00:00]} Ra2 {[%emt 0:00:39]} 49. f5 {[%emt 0:00:00]} gxf5 {[%emt 0:00:
00]} 50. gxf5 {[%emt 0:00:00]} Rxa3+ {[%emt 0:00:11]} 51. Ke4 {[%emt 0:00:00]}
Kc7 {[%emt 0:01:11]} 52. h4 {[%emt 0:02:31]} b4 {[%emt 0:00:16]} 53. f6 {
[%emt 0:01:14]} Kd6 {[%emt 0:00:59]} 54. f7 {[%emt 0:00:41]} Ke7 {[%emt 0:00:
00]} 55. f8=Q+ {[%emt 0:00:34]} Kxf8 {[%emt 0:00:07]} 56. Rxd7 {[%emt 0:00:02]}
Rh3 {[%emt 0:00:45]} 57. Nf5 {[%emt 0:01:47]} a5 {[%emt 0:00:24]} 58. Ra7 {
[%emt 0:01:07]} Ra3 {[%emt 0:00:22]} 59. d6 {[%emt 0:00:35]} Ke8 {[%emt 0:00:
00]} 60. Ng7+ {[%emt 0:00:21]} Kd8 {[%emt 0:01:57]} 61. Ne6+ {[%emt 0:00:48]}
1-0